[Event "Early-Titled-Tuesday-Blitz-February-20-2024"]
[Site "Chess.com"]
[Date "2024.02.20"]
[Round "6"]
[White "rquery98"]
[Black "baki83"]
[Result "1-0"]
[WhiteElo "2777"]
[BlackElo "2888"]
[TimeControl "180+1"]
[EndTime "9:09:18 PST"]
[Termination "rquery98 won by resignation"]

1. c4 {[%clk 0:03:00.9]} 1... e5 {[%clk 0:02:59.1]} 2. g3 {[%clk 0:03:01.3]}
2... Nf6 {[%clk 0:02:55.1]} 3. Bg2 {[%clk 0:03:01.5]} 3... c6 {[%clk 0:02:55.2]}
4. Nf3 {[%clk 0:03:01.1]} 4... e4 {[%clk 0:02:54.8]} 5. Nd4 {[%clk 0:03:01.6]}
5... d5 {[%clk 0:02:55.2]} 6. cxd5 {[%clk 0:03:02.5]} 6... cxd5 {[%clk
0:02:55.4]} 7. d3 {[%clk 0:02:56.4]} 7... Bc5 {[%clk 0:02:51.4]} 8. Nb3 {[%clk
0:02:52.1]} 8... Bb4+ {[%clk 0:02:48.5]} 9. Bd2 {[%clk 0:02:51.5]} 9... Be7
{[%clk 0:02:40.4]} 10. dxe4 {[%clk 0:02:43.8]} 10... Nxe4 {[%clk 0:02:38.6]} 11.
Nc3 {[%clk 0:02:38.4]} 11... f5 {[%clk 0:02:22.5]} 12. Be3 {[%clk 0:02:22.9]}
12... Be6 {[%clk 0:02:14.3]} 13. Nd4 {[%clk 0:02:13.6]} 13... Bc8 {[%clk
0:02:14.2]} 14. Nb3 {[%clk 0:02:07.6]} 14... Be6 {[%clk 0:02:13.5]} 15. Nd4
{[%clk 0:02:05.1]} 15... Bc8 {[%clk 0:02:13.7]} 16. O-O {[%clk 0:02:05.6]} 16...
Nc6 {[%clk 0:02:10.5]} 17. Rc1 {[%clk 0:01:54.6]} 17... Bf6 {[%clk 0:02:00.7]}
18. Nxe4 {[%clk 0:01:35.4]} 18... fxe4 {[%clk 0:01:56.7]} 19. Nxc6 {[%clk
0:01:35]} 19... bxc6 {[%clk 0:01:56.8]} 20. Rxc6 {[%clk 0:01:35.7]} 20... O-O
{[%clk 0:01:28.3]} 21. Bd4 {[%clk 0:01:29.8]} 21... Rb8 {[%clk 0:01:15.3]} 22.
b3 {[%clk 0:01:22.1]} 22... Bb7 {[%clk 0:01:04.3]} 23. Rc2 {[%clk 0:01:16.2]}
23... a5 {[%clk 0:00:59.6]} 24. Qd2 {[%clk 0:01:09]} 24... Ra8 {[%clk
0:00:57.6]} 25. Rfc1 {[%clk 0:01:00.4]} 25... a4 {[%clk 0:00:57.2]} 26. b4
{[%clk 0:01:00.7]} 26... Ba6 {[%clk 0:00:57.6]} 27. Rc5 {[%clk 0:00:56.8]} 27...
Be7 {[%clk 0:00:49.6]} 28. R5c2 {[%clk 0:00:35.8]} 28... a3 {[%clk 0:00:40.7]}
29. Bc5 {[%clk 0:00:30.4]} 29... Rf7 {[%clk 0:00:29.7]} 30. Qd4 {[%clk
0:00:23.3]} 30... Bf6 {[%clk 0:00:29.1]} 31. Qd2 {[%clk 0:00:21.7]} 31... Bb2
{[%clk 0:00:28.9]} 32. Rd1 {[%clk 0:00:21]} 32... Bb7 {[%clk 0:00:10]} 33. Bxe4
{[%clk 0:00:17.7]} 33... Qf6 {[%clk 0:00:10.4]} 34. Bf3 {[%clk 0:00:17.8]} 34...
Rd8 {[%clk 0:00:10.2]} 35. Bd4 {[%clk 0:00:17.4]} 35... Qf5 {[%clk 0:00:06.8]}
36. Bxb2 {[%clk 0:00:10.8]} 36... axb2 {[%clk 0:00:07.7]} 37. Rxb2 {[%clk
0:00:11.7]} 37... d4 {[%clk 0:00:08.3]} 38. Qd3 {[%clk 0:00:12.4]} 38... Bxf3
{[%clk 0:00:07.7]} 39. Qxf5 {[%clk 0:00:11.2]} 39... Rxf5 {[%clk 0:00:08.1]} 40.
exf3 {[%clk 0:00:12.1]} 40... Rxf3 {[%clk 0:00:08.9]} 41. Rbd2 {[%clk
0:00:11.9]} 41... d3 {[%clk 0:00:09.1]} 42. Kg2 {[%clk 0:00:12.4]} 42... Rc8
{[%clk 0:00:07.8]} 43. Kxf3 {[%clk 0:00:11.7]} 1-0

[Event "Early-Titled-Tuesday-Blitz-February-20-2024"]
[Site "Chess.com"]
[Date "2024.02.20"]
[Round "6"]
[White "Jumbo"]
[Black "wonderfultime"]
[Result "0-1"]
[WhiteElo "2822"]
[BlackElo "3063"]
[TimeControl "180+1"]
[EndTime "9:09:19 PST"]
[Termination "wonderfultime won by resignation"]

1. Nf3 {[%clk 0:03:00.9]} 1... d5 {[%clk 0:02:57.7]} 2. g3 {[%clk 0:03:00.4]}
2... Nd7 {[%clk 0:02:56.6]} 3. Bg2 {[%clk 0:03:00.6]} 3... e5 {[%clk 0:02:56]}
4. O-O {[%clk 0:03:00.4]} 4... Ngf6 {[%clk 0:02:52.7]} 5. c4 {[%clk 0:02:55.8]}
5... dxc4 {[%clk 0:02:27.8]} 6. Qa4 {[%clk 0:02:54.4]} 6... a6 {[%clk
0:02:03.8]} 7. Nxe5 {[%clk 0:02:47.1]} 7... b5 {[%clk 0:01:40.3]} 8. Nc6 {[%clk
0:02:46.5]} 8... bxa4 {[%clk 0:01:30.6]} 9. Nxd8 {[%clk 0:02:46.5]} 9... Rb8
{[%clk 0:01:29.1]} 10. Nc6 {[%clk 0:02:45.8]} 10... Rb6 {[%clk 0:01:26.4]} 11.
Nc3 {[%clk 0:02:26.9]} 11... Nc5 {[%clk 0:01:23.9]} 12. f4 {[%clk 0:02:08.8]}
12... Bd7 {[%clk 0:01:18.6]} 13. Ne5 {[%clk 0:02:08.2]} 13... Bb5 {[%clk
0:01:19.3]} 14. d4 {[%clk 0:01:24.7]} 14... cxd3 {[%clk 0:01:18.4]} 15. exd3
{[%clk 0:01:25]} 15... Ne6 {[%clk 0:01:12.9]} 16. Be3 {[%clk 0:01:14.4]} 16...
Bc5 {[%clk 0:01:09.1]} 17. Bxc5 {[%clk 0:01:11.8]} 17... Nxc5 {[%clk 0:01:10]}
18. d4 {[%clk 0:01:10.4]} 18... Ne6 {[%clk 0:00:55.2]} 19. Rfe1 {[%clk
0:01:10.3]} 19... O-O {[%clk 0:00:53.3]} 20. Rad1 {[%clk 0:01:10.7]} 20... Be8
{[%clk 0:00:46.5]} 21. Rd2 {[%clk 0:01:09.2]} 21... g6 {[%clk 0:00:44.8]} 22. a3
{[%clk 0:01:00.3]} 22... Kg7 {[%clk 0:00:44.5]} 23. Nc4 {[%clk 0:00:56.1]} 23...
Rb8 {[%clk 0:00:43.5]} 24. Re5 {[%clk 0:00:56.4]} 24... Bb5 {[%clk 0:00:40.3]}
25. Na5 {[%clk 0:00:52.8]} 25... Rfd8 {[%clk 0:00:40.1]} 26. Nxb5 {[%clk
0:00:38.1]} 26... Rxb5 {[%clk 0:00:41]} 27. Nc6 {[%clk 0:00:38.6]} 27... Rd6
{[%clk 0:00:41.3]} 28. Rxb5 {[%clk 0:00:24.6]} 28... axb5 {[%clk 0:00:42.2]} 29.
Kf2 {[%clk 0:00:21.4]} 29... Nd7 {[%clk 0:00:27.7]} 30. d5 {[%clk 0:00:12.8]}
30... Nec5 {[%clk 0:00:26.7]} 31. Nd4 {[%clk 0:00:12.3]} 31... Rb6 {[%clk
0:00:25.2]} 32. Rc2 {[%clk 0:00:12.1]} 32... b4 {[%clk 0:00:25]} 33. axb4 {[%clk
0:00:11]} 33... Rxb4 {[%clk 0:00:25.9]} 34. Nc6 {[%clk 0:00:11]} 34... Rxb2
{[%clk 0:00:24.9]} 35. Rxb2 {[%clk 0:00:10.9]} 35... Nd3+ {[%clk 0:00:25.6]} 36.
Ke3 {[%clk 0:00:11.6]} 36... Nxb2 {[%clk 0:00:26.4]} 37. Kd2 {[%clk 0:00:12.1]}
37... Nc4+ {[%clk 0:00:25.8]} 38. Kc3 {[%clk 0:00:12.6]} 38... Ne3 {[%clk
0:00:25.4]} 39. Bf3 {[%clk 0:00:12.9]} 39... Nb6 {[%clk 0:00:24.5]} 40. Nb4
{[%clk 0:00:12]} 40... Kf6 {[%clk 0:00:23.8]} 41. h4 {[%clk 0:00:10.3]} 41...
Nf5 {[%clk 0:00:23.7]} 42. g4 {[%clk 0:00:10.3]} 42... Nxh4 {[%clk 0:00:24.3]}
43. Be4 {[%clk 0:00:11]} 43... Ke7 {[%clk 0:00:24.7]} 44. g5 {[%clk 0:00:10.9]}
44... Kd6 {[%clk 0:00:21.2]} 45. Kd4 {[%clk 0:00:09.2]} 45... Nf5+ {[%clk
0:00:21.5]} 46. Bxf5 {[%clk 0:00:08.8]} 46... gxf5 {[%clk 0:00:22.4]} 47. Nd3
{[%clk 0:00:07]} 47... a3 {[%clk 0:00:21.4]} 0-1

[Event "Early-Titled-Tuesday-Blitz-February-20-2024"]
[Site "Chess.com"]
[Date "2024.02.20"]
[Round "6"]
[White "ClaudiaSof"]
[Black "Bilan_Danila"]
[Result "0-1"]
[WhiteElo "2322"]
[BlackElo "2477"]
[TimeControl "180+1"]
[EndTime "9:09:19 PST"]
[Termination "Bilan_Danila won on time"]

1. d4 {[%clk 0:02:57.8]} 1... d5 {[%clk 0:02:59.8]} 2. Bf4 {[%clk 0:02:55.8]}
2... Nf6 {[%clk 0:02:59.5]} 3. e3 {[%clk 0:02:54.3]} 3... c5 {[%clk 0:02:59.6]}
4. c3 {[%clk 0:02:53.5]} 4... Nc6 {[%clk 0:02:59.5]} 5. Nd2 {[%clk 0:02:53.4]}
5... Qb6 {[%clk 0:02:58]} 6. Qb3 {[%clk 0:02:51.1]} 6... c4 {[%clk 0:02:57.7]}
7. Qc2 {[%clk 0:02:50.9]} 7... Nh5 {[%clk 0:02:55.3]} 8. Bg3 {[%clk 0:02:44.7]}
8... Nxg3 {[%clk 0:02:54]} 9. hxg3 {[%clk 0:02:44.6]} 9... g6 {[%clk 0:02:54.3]}
10. e4 {[%clk 0:02:43.5]} 10... e6 {[%clk 0:02:53.5]} 11. e5 {[%clk 0:02:40.2]}
11... Bg7 {[%clk 0:02:50.9]} 12. Ngf3 {[%clk 0:02:39.6]} 12... Qd8 {[%clk
0:02:47.5]} 13. Be2 {[%clk 0:02:36.7]} 13... b5 {[%clk 0:02:46.4]} 14. a3 {[%clk
0:02:33.9]} 14... Bd7 {[%clk 0:02:41.9]} 15. Nf1 {[%clk 0:02:33.8]} 15... a5
{[%clk 0:02:40.2]} 16. Ne3 {[%clk 0:02:32.9]} 16... b4 {[%clk 0:02:40.5]} 17.
axb4 {[%clk 0:02:27.7]} 17... axb4 {[%clk 0:02:41.4]} 18. O-O {[%clk 0:02:23]}
18... O-O {[%clk 0:02:41.2]} 19. Qd2 {[%clk 0:02:17.2]} 19... bxc3 {[%clk
0:02:21.1]} 20. bxc3 {[%clk 0:02:15.6]} 20... Na5 {[%clk 0:02:20.5]} 21. Ng4
{[%clk 0:01:41.4]} 21... h5 {[%clk 0:02:09.1]} 22. Ngh2 {[%clk 0:01:32.3]} 22...
Qe7 {[%clk 0:01:49]} 23. Qf4 {[%clk 0:01:26]} 23... Nb3 {[%clk 0:01:42.1]} 24.
Rxa8 {[%clk 0:01:24]} 24... Rxa8 {[%clk 0:01:43]} 25. g4 {[%clk 0:01:23.6]}
25... hxg4 {[%clk 0:01:24.6]} 26. Nxg4 {[%clk 0:01:22.4]} 26... Ra2 {[%clk
0:01:18.9]} 27. Bd1 {[%clk 0:01:18.5]} 27... Ra1 {[%clk 0:01:00.3]} 28. Nh6+
{[%clk 0:01:14.3]} 28... Kf8 {[%clk 0:00:51.6]} 29. Ng4 {[%clk 0:00:59.2]} 29...
Ke8 {[%clk 0:00:50]} 30. g3 {[%clk 0:00:54.7]} 30... Kd8 {[%clk 0:00:48.8]} 31.
Ng5 {[%clk 0:00:39.2]} 31... Be8 {[%clk 0:00:46.6]} 32. Be2 {[%clk 0:00:36.3]}
32... Rxf1+ {[%clk 0:00:42.2]} 33. Bxf1 {[%clk 0:00:35.6]} 33... Kc7 {[%clk
0:00:34.9]} 34. Nh7 {[%clk 0:00:33.1]} 34... Kb6 {[%clk 0:00:24]} 35. Nhf6
{[%clk 0:00:31.3]} 35... Bc6 {[%clk 0:00:23.2]} 36. Qe3 {[%clk 0:00:18.4]} 36...
Qa3 {[%clk 0:00:21.6]} 37. Kg2 {[%clk 0:00:13.7]} 37... Qc1 {[%clk 0:00:21.7]}
38. Qf3 {[%clk 0:00:11.8]} 38... Nd2 {[%clk 0:00:19.7]} 39. Qe2 {[%clk
0:00:11.8]} 39... Qxc3 {[%clk 0:00:18.1]} 40. Qe3 {[%clk 0:00:07.9]} 40... Qxe3
{[%clk 0:00:15.9]} 41. fxe3 {[%clk 0:00:07.5]} 41... Nxf1 {[%clk 0:00:14.1]} 42.
Kxf1 {[%clk 0:00:07.2]} 42... c3 {[%clk 0:00:12.3]} 43. Ke2 {[%clk 0:00:07.2]}
43... Bb5+ {[%clk 0:00:12]} 44. Kd1 {[%clk 0:00:06.9]} 44... Ba4+ {[%clk
0:00:12.7]} 45. Kc1 {[%clk 0:00:07]} 45... Bf8 {[%clk 0:00:12.9]} 0-1

[Event "Early-Titled-Tuesday-Blitz-February-20-2024"]
[Site "Chess.com"]
[Date "2024.02.20"]
[Round "6"]
[White "Szparu"]
[Black "Sina_Movahed"]
[Result "0-1"]
[WhiteElo "2780"]
[BlackElo "2963"]
[TimeControl "180+1"]
[EndTime "9:09:20 PST"]
[Termination "Sina_Movahed won on time"]

1. e4 {[%clk 0:03:00.9]} 1... c5 {[%clk 0:02:59.6]} 2. c3 {[%clk 0:03:00.4]}
2... Nf6 {[%clk 0:02:59.4]} 3. e5 {[%clk 0:03:00.7]} 3... Nd5 {[%clk 0:03:00.1]}
4. d4 {[%clk 0:03:01.6]} 4... cxd4 {[%clk 0:03:00.9]} 5. Nf3 {[%clk 0:03:02]}
5... e6 {[%clk 0:03:01.1]} 6. cxd4 {[%clk 0:03:01.8]} 6... b6 {[%clk 0:03:01.7]}
7. Bd2 {[%clk 0:02:56.9]} 7... Bb7 {[%clk 0:02:57.1]} 8. Nc3 {[%clk 0:02:56.7]}
8... Nxc3 {[%clk 0:02:50.5]} 9. Bxc3 {[%clk 0:02:56.9]} 9... Be7 {[%clk
0:02:39.7]} 10. Bd3 {[%clk 0:02:53.1]} 10... O-O {[%clk 0:02:40]} 11. h4 {[%clk
0:02:51.6]} 11... h6 {[%clk 0:02:38.8]} 12. h5 {[%clk 0:02:28.5]} 12... d6
{[%clk 0:02:30.2]} 13. O-O {[%clk 0:02:26]} 13... Nd7 {[%clk 0:02:26]} 14. Qe2
{[%clk 0:02:17.2]} 14... dxe5 {[%clk 0:02:21.2]} 15. dxe5 {[%clk 0:02:17.5]}
15... Nc5 {[%clk 0:02:20.1]} 16. Bc4 {[%clk 0:02:17.3]} 16... Qc7 {[%clk
0:02:17.7]} 17. Rac1 {[%clk 0:02:16.8]} 17... Rac8 {[%clk 0:02:17]} 18. Bd2
{[%clk 0:02:15.9]} 18... Qb8 {[%clk 0:02:15.3]} 19. Bf4 {[%clk 0:02:15.6]} 19...
Rfd8 {[%clk 0:02:13.2]} 20. Qe3 {[%clk 0:02:15]} 20... Bf8 {[%clk 0:02:02.9]}
21. Nh2 {[%clk 0:02:02]} 21... Bd5 {[%clk 0:01:59.1]} 22. Be2 {[%clk 0:01:42.2]}
22... Ne4 {[%clk 0:01:53]} 23. Ng4 {[%clk 0:01:35.2]} 23... Rxc1 {[%clk
0:01:48.8]} 24. Rxc1 {[%clk 0:01:23.2]} 24... Rc8 {[%clk 0:01:49.2]} 25. Bd3
{[%clk 0:01:09.8]} 25... Rxc1+ {[%clk 0:01:34.7]} 26. Qxc1 {[%clk 0:01:10.7]}
26... Qd8 {[%clk 0:01:29.9]} 27. Bxh6 {[%clk 0:00:51.9]} 27... Qh4 {[%clk
0:01:22.1]} 28. Bxe4 {[%clk 0:00:49.4]} 28... Bxe4 {[%clk 0:01:21.2]} 29. Qg5
{[%clk 0:00:44.6]} 29... Qxg5 {[%clk 0:01:20.3]} 30. Bxg5 {[%clk 0:00:45.5]}
30... Bb1 {[%clk 0:01:04.7]} 31. a3 {[%clk 0:00:44.9]} 31... b5 {[%clk
0:01:02.4]} 32. h6 {[%clk 0:00:41]} 32... gxh6 {[%clk 0:00:59.9]} 33. Bxh6
{[%clk 0:00:36.9]} 33... Be7 {[%clk 0:00:59.8]} 34. Be3 {[%clk 0:00:33.8]} 34...
a5 {[%clk 0:00:57.7]} 35. Bb6 {[%clk 0:00:33.1]} 35... a4 {[%clk 0:00:54.1]} 36.
Ba5 {[%clk 0:00:24.7]} 36... Kg7 {[%clk 0:00:53.2]} 37. Bc3 {[%clk 0:00:24.6]}
37... Kg6 {[%clk 0:00:52.1]} 38. Kf1 {[%clk 0:00:23.6]} 38... Bd3+ {[%clk
0:00:49.7]} 39. Ke1 {[%clk 0:00:24]} 39... Bc5 {[%clk 0:00:50.1]} 40. Nf6 {[%clk
0:00:20.6]} 40... Kf5 {[%clk 0:00:44.7]} 41. Ne8 {[%clk 0:00:19.9]} 41... Kg6
{[%clk 0:00:42]} 42. Nd6 {[%clk 0:00:16.6]} 42... f5 {[%clk 0:00:40.9]} 43. g3
{[%clk 0:00:12.4]} 43... Kh5 {[%clk 0:00:38]} 44. Ne8 {[%clk 0:00:11.6]} 44...
Kg4 {[%clk 0:00:35.8]} 45. Bb4 {[%clk 0:00:07.6]} 45... Bb6 {[%clk 0:00:33.2]}
46. Nf6+ {[%clk 0:00:03.4]} 46... Kf3 {[%clk 0:00:33.1]} 47. Nd7 {[%clk
0:00:02.8]} 47... Bxf2+ {[%clk 0:00:32.7]} 48. Kd2 {[%clk 0:00:03.4]} 48... Bc4
{[%clk 0:00:32.3]} 49. Nc5 {[%clk 0:00:02.8]} 49... Bxg3 {[%clk 0:00:31.4]} 50.
Bc3 {[%clk 0:00:01.3]} 50... f4 {[%clk 0:00:29.9]} 0-1

[Event "Early-Titled-Tuesday-Blitz-February-20-2024"]
[Site "Chess.com"]
[Date "2024.02.20"]
[Round "6"]
[White "Kapitan_Bayan"]
[Black "viktorgen2021"]
[Result "0-1"]
[WhiteElo "2354"]
[BlackElo "2540"]
[TimeControl "180+1"]
[EndTime "9:09:22 PST"]
[Termination "viktorgen2021 won on time"]

1. e4 {[%clk 0:03:00.9]} 1... g6 {[%clk 0:02:56.1]} 2. d4 {[%clk 0:03:00.7]}
2... Bg7 {[%clk 0:02:55.7]} 3. c4 {[%clk 0:03:00.6]} 3... d6 {[%clk 0:02:53.9]}
4. Nc3 {[%clk 0:03:00.6]} 4... Nf6 {[%clk 0:02:52.9]} 5. f4 {[%clk 0:02:56.4]}
5... O-O {[%clk 0:02:52.7]} 6. Nf3 {[%clk 0:02:55]} 6... Na6 {[%clk 0:02:50.8]}
7. Be2 {[%clk 0:02:52.6]} 7... c5 {[%clk 0:02:45.1]} 8. e5 {[%clk 0:02:50]} 8...
Nd7 {[%clk 0:02:37.8]} 9. dxc5 {[%clk 0:02:40.5]} 9... Naxc5 {[%clk 0:02:27.3]}
10. exd6 {[%clk 0:02:38.1]} 10... exd6 {[%clk 0:02:28.2]} 11. Qxd6 {[%clk
0:02:33.4]} 11... Re8 {[%clk 0:02:25.5]} 12. Ne5 {[%clk 0:01:10.4]} 12... Bf8
{[%clk 0:01:37.6]} 13. Qd5 {[%clk 0:01:04.5]} 13... Qf6 {[%clk 0:01:25.4]} 14.
O-O {[%clk 0:01:00.4]} 14... Nb6 {[%clk 0:01:19.4]} 15. Qf3 {[%clk 0:00:41.5]}
15... Be6 {[%clk 0:01:10.5]} 16. Be3 {[%clk 0:00:40.9]} 16... Ncd7 {[%clk
0:01:08.4]} 17. Ne4 {[%clk 0:00:34.4]} 17... Qg7 {[%clk 0:01:04.3]} 18. Bd4
{[%clk 0:00:29.1]} 18... f6 {[%clk 0:01:02]} 19. Nxd7 {[%clk 0:00:25.4]} 19...
Nxd7 {[%clk 0:01:02]} 20. Rad1 {[%clk 0:00:22.2]} 20... Rad8 {[%clk 0:00:57.1]}
21. Bc3 {[%clk 0:00:17.4]} 21... Bf5 {[%clk 0:00:51.9]} 22. Bd3 {[%clk
0:00:16.3]} 22... Qf7 {[%clk 0:00:43.4]} 23. g4 {[%clk 0:00:16.1]} 23... Bxe4
{[%clk 0:00:38.5]} 24. Bxe4 {[%clk 0:00:16.1]} 24... Bc5+ {[%clk 0:00:36.8]} 25.
Kg2 {[%clk 0:00:15.9]} 25... Nb6 {[%clk 0:00:35.4]} 26. Bd5 {[%clk 0:00:13.5]}
26... Nxd5 {[%clk 0:00:34.3]} 27. Rxd5 {[%clk 0:00:12]} 27... Rxd5 {[%clk
0:00:32.9]} 28. Qxd5 {[%clk 0:00:11.4]} 28... Re2+ {[%clk 0:00:19.1]} 29. Kg3
{[%clk 0:00:11.3]} 29... Qxd5 {[%clk 0:00:15]} 30. cxd5 {[%clk 0:00:11.3]} 30...
Kf7 {[%clk 0:00:15.7]} 31. Rd1 {[%clk 0:00:11.1]} 31... Bd6 {[%clk 0:00:13.8]}
32. Kf3 {[%clk 0:00:08.6]} 32... Rxh2 {[%clk 0:00:13.4]} 33. a3 {[%clk
0:00:06.9]} 33... g5 {[%clk 0:00:09.4]} 34. fxg5 {[%clk 0:00:06.4]} 34... fxg5
{[%clk 0:00:09]} 35. Rf1 {[%clk 0:00:06.1]} 35... Ke7 {[%clk 0:00:07]} 36. Ke3
{[%clk 0:00:05.3]} 36... Bf4+ {[%clk 0:00:05.9]} 37. Ke4 {[%clk 0:00:05.1]}
37... h5 {[%clk 0:00:04.5]} 38. Bb4+ {[%clk 0:00:05]} 38... Kd7 {[%clk
0:00:04.6]} 39. d6 {[%clk 0:00:02.7]} 39... hxg4 {[%clk 0:00:04.1]} 40. Rc1
{[%clk 0:00:01.7]} 40... Bxc1 {[%clk 0:00:03.8]} 41. Bc5 {[%clk 0:00:01.5]}
41... Bf4 {[%clk 0:00:04.1]} 0-1

[Event "Early-Titled-Tuesday-Blitz-February-20-2024"]
[Site "Chess.com"]
[Date "2024.02.20"]
[Round "6"]
[White "Genghis_K"]
[Black "artooon"]
[Result "1/2-1/2"]
[WhiteElo "2936"]
[BlackElo "3051"]
[TimeControl "180+1"]
[EndTime "9:09:26 PST"]
[Termination "Game drawn by repetition"]

1. e4 {[%clk 0:03:00.9]} 1... e5 {[%clk 0:02:59.2]} 2. Nf3 {[%clk 0:03:01.5]}
2... Nc6 {[%clk 0:02:58.9]} 3. d4 {[%clk 0:03:02.3]} 3... exd4 {[%clk
0:02:59.8]} 4. Nxd4 {[%clk 0:03:03.2]} 4... Nf6 {[%clk 0:03:00]} 5. Nxc6 {[%clk
0:03:03.9]} 5... bxc6 {[%clk 0:03:00]} 6. Bd3 {[%clk 0:03:04.6]} 6... d5 {[%clk
0:03:00]} 7. exd5 {[%clk 0:03:05.5]} 7... cxd5 {[%clk 0:03:00.9]} 8. O-O {[%clk
0:03:06.1]} 8... Be7 {[%clk 0:03:00.3]} 9. c4 {[%clk 0:03:06.8]} 9... c6 {[%clk
0:02:52.1]} 10. cxd5 {[%clk 0:03:05.8]} 10... cxd5 {[%clk 0:02:53]} 11. Nc3
{[%clk 0:03:06.1]} 11... O-O {[%clk 0:02:53.1]} 12. Be3 {[%clk 0:03:06.5]} 12...
Be6 {[%clk 0:02:37.2]} 13. h3 {[%clk 0:02:58.2]} 13... Nd7 {[%clk 0:02:23.3]}
14. Ne2 {[%clk 0:02:54]} 14... Ne5 {[%clk 0:02:20.4]} 15. Bd4 {[%clk 0:02:49.5]}
15... Bf6 {[%clk 0:02:17]} 16. Rc1 {[%clk 0:02:43.1]} 16... Re8 {[%clk
0:02:06.2]} 17. Bb1 {[%clk 0:02:41.6]} 17... Nc4 {[%clk 0:01:44.4]} 18. b3
{[%clk 0:02:40]} 18... Nd6 {[%clk 0:01:44.9]} 19. Nf4 {[%clk 0:02:32.3]} 19...
Bg5 {[%clk 0:01:34.4]} 20. Qf3 {[%clk 0:02:31.9]} 20... Bh6 {[%clk 0:01:28.6]}
21. Rcd1 {[%clk 0:02:26.9]} 21... Ne4 {[%clk 0:01:15.5]} 22. Rfe1 {[%clk
0:01:59.8]} 22... Qh4 {[%clk 0:01:15.3]} 23. g3 {[%clk 0:01:54.9]} 23... Ng5
{[%clk 0:01:11.4]} 24. Bxh7+ {[%clk 0:01:35.3]} 24... Kh8 {[%clk 0:01:05.7]} 25.
Qg2 {[%clk 0:01:32.3]} 25... Nxh3+ {[%clk 0:00:57.2]} 26. Nxh3 {[%clk
0:01:31.3]} 26... Qxh3 {[%clk 0:00:56.7]} 27. Qxh3 {[%clk 0:01:23]} 27... Bxh3
{[%clk 0:00:57.6]} 28. Bd3 {[%clk 0:01:21.7]} 28... Bg4 {[%clk 0:00:57.6]} 29.
Rb1 {[%clk 0:01:14.4]} 29... a5 {[%clk 0:00:57.4]} 30. Kg2 {[%clk 0:01:13.6]}
30... Bd2 {[%clk 0:00:52.5]} 31. Rh1+ {[%clk 0:01:11.9]} 31... Kg8 {[%clk
0:00:53]} 32. Rh4 {[%clk 0:01:12.1]} 32... Be6 {[%clk 0:00:34.9]} 33. Rbh1
{[%clk 0:01:11.1]} 33... f5 {[%clk 0:00:29.4]} 34. f4 {[%clk 0:00:27.2]} 34...
Kf7 {[%clk 0:00:29.3]} 35. Rh7 {[%clk 0:00:27.6]} 35... Rg8 {[%clk 0:00:29.9]}
36. R1h6 {[%clk 0:00:25.7]} 36... Rac8 {[%clk 0:00:16.5]} 37. Rf6+ {[%clk
0:00:22.3]} 37... Ke7 {[%clk 0:00:17.2]} 38. Rg6 {[%clk 0:00:22.7]} 38... Bc3
{[%clk 0:00:17.8]} 39. Be5 {[%clk 0:00:07.5]} 39... Bxe5 {[%clk 0:00:17.3]} 40.
fxe5 {[%clk 0:00:08.4]} 40... Rc3 {[%clk 0:00:14.4]} 41. Bb5 {[%clk 0:00:05.3]}
41... Kf7 {[%clk 0:00:12.6]} 42. Rf6+ {[%clk 0:00:05.5]} 42... Ke7 {[%clk
0:00:13.3]} 43. Rg6 {[%clk 0:00:06.3]} 43... Rc2+ {[%clk 0:00:13.2]} 44. Kf3
{[%clk 0:00:06.8]} 44... Kf7 {[%clk 0:00:13.6]} 45. Rf6+ {[%clk 0:00:07.1]}
45... Ke7 {[%clk 0:00:14.3]} 46. Rg6 {[%clk 0:00:07.5]} 46... Kf7 {[%clk
0:00:08]} 47. Rf6+ {[%clk 0:00:07.9]} 47... Ke7 {[%clk 0:00:08.6]} 48. Rg6
{[%clk 0:00:08.7]} 1/2-1/2

[Event "Early-Titled-Tuesday-Blitz-February-20-2024"]
[Site "Chess.com"]
[Date "2024.02.20"]
[Round "6"]
[White "bancsoo"]
[Black "Fighterman91"]
[Result "0-1"]
[WhiteElo "2895"]
[BlackElo "2786"]
[TimeControl "180+1"]
[EndTime "9:09:26 PST"]
[Termination "Fighterman91 won on time"]

1. Nf3 {[%clk 0:03:00.9]} 1... d5 {[%clk 0:02:57.1]} 2. g3 {[%clk 0:03:01.3]}
2... Nd7 {[%clk 0:02:56.3]} 3. d4 {[%clk 0:03:00.6]} 3... Nb6 {[%clk 0:02:57]}
4. Nc3 {[%clk 0:03:00.4]} 4... c6 {[%clk 0:02:56.3]} 5. Bg2 {[%clk 0:02:58.7]}
5... Bf5 {[%clk 0:02:56.6]} 6. a4 {[%clk 0:02:47.8]} 6... e6 {[%clk 0:02:39.5]}
7. a5 {[%clk 0:02:44.4]} 7... Nd7 {[%clk 0:02:39.4]} 8. a6 {[%clk 0:02:44.1]}
8... b5 {[%clk 0:02:39.9]} 9. O-O {[%clk 0:02:39.8]} 9... Ngf6 {[%clk
0:02:26.5]} 10. Ne5 {[%clk 0:02:30.4]} 10... Nxe5 {[%clk 0:02:26.3]} 11. dxe5
{[%clk 0:02:30.4]} 11... b4 {[%clk 0:01:44.1]} 12. exf6 {[%clk 0:02:30.3]} 12...
bxc3 {[%clk 0:01:44.5]} 13. fxg7 {[%clk 0:02:30.7]} 13... Bxg7 {[%clk
0:01:44.7]} 14. bxc3 {[%clk 0:02:08.1]} 14... O-O {[%clk 0:01:43.1]} 15. Ba3
{[%clk 0:01:50.5]} 15... Re8 {[%clk 0:01:43.1]} 16. Bc5 {[%clk 0:01:35.3]} 16...
Bxc3 {[%clk 0:01:42.3]} 17. Ra3 {[%clk 0:01:34.7]} 17... Bg7 {[%clk 0:01:40.9]}
18. Qd2 {[%clk 0:01:20.3]} 18... Qc7 {[%clk 0:00:57.6]} 19. Rb1 {[%clk
0:01:16.1]} 19... Reb8 {[%clk 0:00:54.2]} 20. Rab3 {[%clk 0:01:16.3]} 20... Rxb3
{[%clk 0:00:37.5]} 21. Rxb3 {[%clk 0:01:17]} 21... Rb8 {[%clk 0:00:35.8]} 22. h3
{[%clk 0:00:44.2]} 22... Bf8 {[%clk 0:00:25.9]} 23. Qg5+ {[%clk 0:00:39.6]}
23... Bg6 {[%clk 0:00:25.8]} 24. Bd4 {[%clk 0:00:25.7]} 24... Bg7 {[%clk
0:00:11.5]} 25. Bxg7 {[%clk 0:00:20.5]} 25... Kxg7 {[%clk 0:00:11.2]} 26. Qe3
{[%clk 0:00:16.5]} 26... Rxb3 {[%clk 0:00:10.1]} 27. cxb3 {[%clk 0:00:17.3]}
27... c5 {[%clk 0:00:10.7]} 28. Qc3+ {[%clk 0:00:14.9]} 28... d4 {[%clk
0:00:10.6]} 29. Qc4 {[%clk 0:00:15.1]} 29... Qb6 {[%clk 0:00:10.8]} 30. Bb7
{[%clk 0:00:11.3]} 30... Qb4 {[%clk 0:00:10.8]} 31. Qxb4 {[%clk 0:00:06.5]}
31... cxb4 {[%clk 0:00:11]} 32. Bc6 {[%clk 0:00:05.6]} 32... Bc2 {[%clk
0:00:11]} 33. Ba4 {[%clk 0:00:06.3]} 33... d3 {[%clk 0:00:08.7]} 34. exd3 {[%clk
0:00:06.8]} 34... Bxd3 {[%clk 0:00:09.5]} 35. Kg2 {[%clk 0:00:07.7]} 35... Bxa6
{[%clk 0:00:10.1]} 36. Kf3 {[%clk 0:00:08.6]} 36... Bb7+ {[%clk 0:00:09.6]} 37.
Ke3 {[%clk 0:00:08.7]} 37... e5 {[%clk 0:00:08.2]} 38. Kd3 {[%clk 0:00:08.3]}
38... Bd5 {[%clk 0:00:08.3]} 39. f4 {[%clk 0:00:06.5]} 39... f6 {[%clk
0:00:07.9]} 40. Ke3 {[%clk 0:00:06.9]} 40... h6 {[%clk 0:00:07.2]} 41. g4 {[%clk
0:00:07.3]} 41... a5 {[%clk 0:00:07]} 42. fxe5 {[%clk 0:00:05.8]} 42... fxe5
{[%clk 0:00:07]} 43. Kd3 {[%clk 0:00:06.5]} 43... Kf6 {[%clk 0:00:07.3]} 44. Ke3
{[%clk 0:00:07.3]} 44... Kg5 {[%clk 0:00:07.7]} 0-1